bitfinex-derivatives/quotes_ETHF0:USTF0_20250102
["timestamp","ask_amount","ask_price","bid_price","bid_amount"]
[1735860496179,1.76236586,3452.5,3452.4,1.42392]
[1735860499087,0.75272,3452.5,3452.4,1.42392]
[1735860502890,5.30439898,3452.5,3452.4,1.42392]
[1735860504987,5.01447898,3452.5,3452.4,1.42392]
[1735860505184,5.30439898,3452.5,3452.4,1.42392]
[1735860506887,5.01447898,3452.5,3452.4,1.42392]
[1735860510499,0.4628,3452.5,3452.4,1.42392]
[1735860512490,6.15239872,3452.5,3452.4,1.42392]
[1735860512703,6.44231872,3452.5,3452.4,1.42392]
[1735860512891,5.68959872,3452.5,3452.4,1.42392]
[1735860513998,5.97950872,3452.6,3452.4,1.42392]
[1735860514893,5.97950872,3452.6,3452.4,0.28992]
[1735860515100,5.68959872,3452.5,3452.4,0.28992]
[1735860515902,5.68959872,3452.5,3452.4,1.42392]
[1735860518710,5.68959872,3452.5,3452.4,1.134]
[1735860519009,5.68959872,3452.5,3452.4,1.42392]
[1735860519304,5.68959872,3452.5,3452.1,4.52441827]
[1735860519503,0.28994,3452.2,3452.1,4.52441827]
[1735860520008,1.13944,3452.2,3452.1,4.52441827]
[1735860520508,0.28995,3452.1,3452.0,1.134]
[1735860521306,6.82903872,3452.2,3452.0,1.42396]
[1735860521809,5.68959872,3452.1,3452.0,2.43360586]
[1735860522408,5.68959872,3452.1,3452.0,1.42396]
[1735860523311,6.82904872,3452.2,3452.0,1.42396]
[1735860524612,5.68959872,3452.1,3452.0,1.42396]
[1735860525810,6.82903872,3452.2,3452.0,1.42396]
[1735860526005,6.53909872,3452.2,3452.0,1.134]
[1735860526210,6.53909872,3452.2,3452.1,0.28995]
[1735860526612,6.82903872,3452.2,3452.0,1.42395]
[1735860526813,6.53909872,3452.2,3452.0,1.134]
[1735860527013,6.82903872,3452.2,3452.0,1.42395]
[1735860527414,6.53909872,3452.2,3452.1,0.28995]
[1735860529613,0.8495,3452.2,3452.1,0.28995]
[1735860530614,6.53909872,3452.2,3452.1,0.28995]
[1735860531406,0.8495,3452.2,3452.1,0.28995]
[1735860534718,6.53909872,3452.2,3452.1,0.28995]
[1735860536111,0.8495,3452.2,3452.1,0.28995]
[1735860541423,8.89739872,3452.3,3452.2,0.28994]
[1735860542228,7.76930726,3452.3,3452.2,0.28994]
[1735860542528,4.56150726,3452.3,3452.2,0.28994]
[1735860547923,5.57115312,3452.3,3452.1,0.72095]
[1735860548131,5.86109312,3452.3,3452.1,0.28995]
[1735860548724,5.86109312,3452.3,3452.0,1.134]
[1735860548926,5.57115312,3452.3,3452.2,0.28994]
[1735860549429,6.69924458,3452.3,3452.2,0.28994]
[1735860550321,6.98917458,3452.3,3452.2,0.28994]
[1735860550926,6.69924458,3452.3,3452.2,0.28994]
[1735860551120,6.69924458,3452.3,3452.1,0.28994]
[1735860551332,0.28994,3452.2,3452.1,0.28994]
[1735860551520,0.28994,3452.2,3452.0,1.134]
[1735860551724,0.8905,3452.1,3452.0,0.28996]
[1735860553332,0.28996,3452.0,3451.9,1.133]
[1735860553532,0.75606,3452.0,3451.9,1.133]
[1735860554731,5.68959872,3452.0,3451.9,1.42297]
[1735860556035,5.68959872,3452.1,3452.0,0.28996]
[1735860557628,5.68959872,3452.1,3451.9,1.133]
[1735860557830,1.29960586,3452.0,3451.9,1.42296]
[1735860558623,6.98920458,3452.0,3451.9,1.42296]
[1735860560031,6.69924458,3452.0,3451.9,1.42296]
[1735860560630,5.68959872,3452.0,3451.9,1.42296]
[1735860561524,0.28996,3452.0,3451.9,1.42296]
[1735860562834,5.97954872,3452.1,3452.0,0.28996]
[1735860564334,5.68959872,3452.1,3452.0,0.28996]
[1735860564736,5.68959872,3452.1,3452.0,1.16886]
[1735860565437,4.56253807,3452.1,3452.0,1.16886]
[1735860565937,4.56253807,3452.1,3452.0,2.17850586]
[1735860566143,4.56253807,3452.1,3452.0,2.60180586]
[1735860566639,4.56253807,3452.2,3452.1,0.28995]
[1735860567640,7.77033807,3452.3,3452.2,0.28994]
[1735860567839,4.56253807,3452.3,3452.2,0.28994]
[1735860569532,5.00573807,3452.3,3452.2,0.28994]
[1735860571339,0.4432,3452.3,3452.2,0.28994]
[1735860574146,5.00467149,3452.3,3452.2,0.28994]
[1735860577744,0.4432,3452.3,3452.2,0.28994]
[1735860577941,0.4432,3452.3,3452.2,1.29958586]
[1735860578852,0.4432,3452.3,3452.2,2.47784611]
[1735860579052,5.00467149,3452.3,3452.2,2.47784611]
[1735860579552,5.00467149,3452.3,3452.2,1.75276288]
[1735860579743,4.56147149,3452.3,3452.2,1.75276288]
[1735860580147,4.56147149,3452.4,3452.3,0.28993]
[1735860580741,4.56147149,3452.4,3452.3,0.74310702]
[1735860589951,2.2794148,3452.5,3452.4,0.28992]
[1735860590157,2.2794148,3452.5,3452.4,1.29956586]
[1735860590349,2.2794148,3452.5,3452.4,2.18024288]
[1735860593749,2.2794148,3452.6,3452.4,1.89032288]
[1735860593950,2.2794148,3452.6,3452.5,0.74309702]
[1735860595158,3.4191222,3452.7,3452.5,0.45317702]
[1735860595355,3.4191222,3452.7,3452.6,1.42291]
[1735860595553,4.71866806,3452.7,3452.6,0.45317702]
[1735860595758,4.71866806,3452.7,3452.6,1.58617702]
[1735860596257,45.51866806,3452.7,3452.6,1.58617702]
[1735860596458,46.66101735,3452.7,3452.6,1.58617702]
[1735860597160,0.28993,3452.4,3452.2,0.28994]
[1735860597356,0.28994,3452.2,3452.0,5.94736827]
[1735860597550,1.00964586,3452.3,3452.0,5.94736827]
[1735860597551,1.00964586,3452.1,3452.0,5.94736827]
[1735860597955,1.75178586,3452.3,3452.1,0.28995]
[1735860598860,1.75178586,3452.3,3452.2,0.28994]
[1735860599656,1.46184586,3452.3,3452.2,0.28994]
[1735860600358,1.92824586,3452.3,3452.2,0.28994]
[1735860600569,0.9186,3452.3,3452.2,0.28994]
[1735860600758,5.47559929,3452.3,3452.2,0.28994]
[1735860601454,5.47559929,3452.3,3452.2,0.71274]
[1735860602059,0.9186,3452.3,3452.2,0.71274]
[1735860603065,3.41772165,3452.4,3452.3,0.28993]
[1735860603265,3.41772165,3452.4,3452.3,1.29957586]
[1735860604665,3.41772165,3452.5,3452.3,1.00964586]
[1735860604865,3.41772165,3452.5,3452.4,0.28992]
[1735860607361,3.41772165,3452.5,3452.4,0.73912]
[1735860608867,2.27925532,3452.5,3452.4,0.73912]
[1735860609172,2.27925532,3452.5,3452.4,1.19085215]
[1735860610257,2.27925532,3452.5,3452.4,6.19085215]
[1735860610468,2.27925532,3452.8,3452.4,18.15454355]
[1735860610764,2.27925532,3452.8,3452.7,3.4977]
[1735860611071,2.27925532,3452.8,3452.7,3.94943215]
[1735860611259,2.27925532,3452.8,3452.7,4.80053215]
[1735860611867,3.41772165,3452.9,3452.8,0.28989]
[1735860611868,2.27925532,3452.9,3452.8,0.28989]
[1735860612063,2.27925532,3452.9,3452.8,1.42289]
[1735860612263,2.27925532,3452.9,3452.8,1.87462215]
[1735860612466,2.27925532,3452.9,3452.8,2.88426801]
[1735860613271,2.72035532,3452.9,3452.8,2.88426801]
[1735860613566,40.3533,3453.2,3452.8,2.59437801]
[1735860613771,4.12169929,3453.3,3453.2,1.29950586]
[1735860613963,4.12169929,3453.3,3453.2,1.75123801]
[1735860614159,4.12169929,3453.3,3453.2,2.19093801]
[1735860614567,44.92169929,3453.3,3453.2,2.19093801]
[1735860614769,40.8,3453.3,3453.2,2.19093801]
[1735860615461,0.01061496,3453.4,3453.3,0.28985]
[1735860615664,0.01061496,3453.4,3453.3,0.74158215]
[1735860615859,0.01061496,3453.4,3453.3,1.17928215]
[1735860616067,0.91194113,3453.5,3453.4,0.28984]
[1735860616467,0.91194113,3453.5,3453.4,0.74157215]
[1735860618972,6.82751847,3454.8,3454.3,0.28976]
[1735860619163,0.8922,3454.7,3454.3,1.87349215]
[1735860620473,0.4294,3454.6,3454.3,1.58373215]
[1735860620670,0.4294,3454.6,3454.5,0.28975]
[1735860621069,0.4294,3454.6,3454.5,0.73916311]
[1735860625868,0.4294,3454.6,3454.5,0.28975]
[1735860626066,0.4294,3454.6,3454.5,0.73826377]
[1735860628281,44.0078,3455.1,3455.0,0.28971]
[1735860628577,44.0078,3455.1,3455.0,1.42171]
[1735860628971,44.9083,3455.1,3455.0,1.87006596]
[1735860630889,44.9083,3455.1,3455.0,1.42171]
[1735860635886,44.9083,3455.1,3455.0,1.8701912]
[1735860636187,44.9083,3455.1,3455.0,1.42171]
[1735860636588,44.9083,3455.1,3455.0,1.87030539]
[1735860636890,44.9083,3455.1,3455.0,0.44859539]
[1735860637091,0.28971,3455.0,3454.9,1.132]
[1735860637295,44.9083,3455.1,3454.7,1.132]
[1735860637489,0.28972,3454.8,3454.7,1.132]
[1735860638395,44.9083,3455.1,3454.7,1.132]
[1735860638694,0.28972,3454.9,3454.8,0.28972]
[1735860639195,0.28972,3454.9,3454.7,1.132]
[1735860639394,0.28972,3454.9,3454.7,1.42173]
[1735860639891,0.28972,3454.9,3454.7,1.132]
[1735860640089,0.28972,3454.9,3454.7,1.42173]
[1735860640290,0.28972,3454.8,3454.7,1.42173]
[1735860640889,0.28972,3454.8,3454.7,1.132]
[1735860646097,44.9083,3455.1,3454.3,0.4287]
[1735860646298,0.8884,3454.7,3454.3,1.132]
[1735860646489,0.72074,3454.6,3454.4,0.28975]
[1735860647298,0.431,3454.6,3454.5,0.28975]
[1735860649497,0.431,3454.6,3454.5,0.73779534]
[1735860651501,0.431,3454.6,3454.5,0.73787862]
[1735860653601,0.8884,3454.7,3454.5,0.44812862]
[1735860653800,0.4276,3454.9,3454.6,0.44812862]
[1735860654099,0.4276,3454.9,3454.8,0.28972]
[1735860654299,0.4276,3454.9,3454.8,0.73784862]
[1735860656500,0.71731,3454.9,3454.8,0.73784862]
[1735860656697,0.4276,3454.9,3454.8,0.73784862]
[1735860660701,0.71731,3454.9,3454.8,0.73784862]
[1735860660901,0.71731,3454.9,3454.8,1.86984862]
[1735860661402,0.71731,3454.9,3454.8,1.42172]
[1735860661803,0.71731,3454.9,3454.8,1.87028243]
[1735860662401,1.60675702,3455.0,3454.8,1.58056243]
[1735860662701,1.3772,3455.7,3455.6,0.28966]
[1735860662903,7.96543821,3456.1,3455.8,0.28964]
[1735860663103,7.96543821,3456.1,3455.8,0.73820243]
[1735860663509,6.82751847,3456.1,3456.0,0.28962]
[1735860664010,6.82751847,3456.1,3456.0,0.73818243]
[1735860664707,47.62751847,3456.1,3456.0,0.73818243]
[1735860665008,40.8,3456.1,3456.0,0.73818243]
[1735860665196,40.8,3456.1,3456.0,3.94598243]
[1735860665509,0.28959,3456.4,3456.2,0.2896]
[1735860665710,0.28959,3456.4,3456.3,2.30386547]
[1735860665906,41.08959,3456.4,3456.3,2.30386547]
[1735860667006,46.08959,3456.4,3456.3,0.72430304]
[1735860667207,0.28961,3456.1,3456.0,3.2078]
[1735860667402,2.58143457,3456.1,3456.0,3.2078]
[1735860667904,40.8,3456.1,3456.0,3.49742]
[1735860668898,1.20888,3456.6,3456.5,0.28958]
[1735860669308,0.9193,3456.6,3456.5,0.28958]
[1735860669507,41.7193,3456.6,3456.5,0.28958]
[1735860670109,41.7193,3456.6,3456.5,1.42058]
[1735860672105,42.00887,3456.6,3456.5,1.42058]
[1735860672307,41.7193,3456.6,3456.5,1.42058]
[1735860672506,41.7193,3456.6,3456.5,1.131]
[1735860672809,42.00887,3456.6,3456.5,1.131]
[1735860674515,41.722163,3456.6,3456.4,3.2078]
[1735860674713,0.28962,3456.0,3455.9,3.2078]
[1735860675212,41.08962,3456.0,3455.9,3.2078]
[1735860676017,0.28965,3455.7,3455.6,1.131]
[1735860677308,0.28965,3455.7,3455.5,3.2078]
[1735860677816,0.28964,3455.8,3455.5,3.49746]
[1735860678008,0.28964,3455.8,3455.5,3.2078]
[1735860678212,0.28964,3455.8,3455.7,0.28965]
[1735860678404,1.3664,3455.9,3455.5,3.2078]
[1735860678610,6.82751847,3456.9,3455.6,2.29182457]
[1735860678820,0.450363,3456.6,3456.5,0.28958]
[1735860679008,0.002863,3456.6,3456.5,1.42058]
[1735860679315,0.002863,3456.6,3456.5,1.87211822]
[1735860683521,0.002863,3456.6,3456.5,1.42058]
[1735860683916,0.002863,3456.6,3456.5,1.87216867]
[1735860687915,0.002863,3456.6,3456.5,5.07996867]
[1735860688111,0.002863,3456.6,3456.5,5.31762273]
[1735860688916,0.002863,3456.6,3456.5,2.10982273]
[1735860689116,0.002863,3456.6,3456.5,5.31762273]
[1735860690314,40.8,3457.0,3456.9,0.28955]
[1735860690522,0.4536,3457.5,3457.1,0.28953]
[1735860690717,0.4629,3457.3,3457.2,0.45158867]
[1735860691023,0.4629,3457.3,3457.2,0.74110867]
[1735860693123,40.8,3457.5,3457.4,0.2895]
[1735860693320,4.53015986,3457.9,3457.8,0.28947]
[1735860693519,4.53015986,3457.9,3457.8,5.07985867]
[1735860694427,6.09153087,3458.2,3458.1,0.28945]
[1735860694428,0.4236,3458.2,3458.1,0.28945]
[1735860695018,0.4236,3458.2,3458.1,0.74103867]
[1735860697420,0.4236,3458.2,3458.1,0.45158867]
[1735860697612,0.4236,3458.2,3458.0,0.28945]
[1735860698327,0.4236,3458.2,3457.8,4.57246776]
[1735860698530,0.4236,3458.2,3458.1,0.45123233]
[1735860698826,0.71304,3458.2,3458.1,0.45123233]
[1735860699121,0.28949,3457.6,3457.5,1.131]
[1735860699527,0.2895,3457.5,3457.4,3.2078]
[1735860699825,0.28953,3457.1,3457.0,3.2078]
[1735860700021,0.28954,3457.0,3456.9,1.131]
[1735860700322,0.08882735,3457.3,3456.9,1.131]
[1735860700525,0.28951,3457.3,3457.2,3.2078]
[1735860701627,0.28951,3457.3,3457.2,4.3388]
[1735860702126,0.28951,3457.3,3457.2,3.2078]
[1735860711327,0.28951,3457.3,3457.2,3.65726867]
[1735860712825,0.28951,3457.3,3457.2,3.2078]
[1735860713025,41.08951,3457.3,3457.2,3.2078]
[1735860713328,40.8,3457.3,3456.8,1.141]
[1735860713535,0.28955,3456.9,3456.8,1.141]
[1735860713826,0.28955,3456.9,3456.8,1.59064456]
[1735860717325,0.73714,3457.0,3456.9,0.28955]
[1735860717525,0.432,3457.2,3456.9,0.28955]
[1735860717721,0.28953,3457.1,3457.0,0.44964456]
[1735860717925,0.28953,3457.1,3457.0,0.73918456]
[1735860719027,0.28953,3457.1,3457.0,1.88018456]
[1735860719228,0.72152,3457.2,3457.1,0.28953]
[1735860719624,0.28952,3457.2,3457.1,0.73917456]
[1735860720219,40.8,3457.5,3457.1,3.65744456]
[1735860720424,3.2078,3457.6,3457.2,0.44964456]
[1735860720626,4.81963986,3457.7,3457.6,0.28949]
[1735860720823,4.81963986,3457.7,3457.3,0.73915456]
[1735860720824,0.2895,3457.5,3457.3,0.73915456]
[1735860721128,40.8,3457.7,3457.1,3.49733]
[1735860721327,0.28952,3457.3,3457.2,0.09050615]
[1735860721526,0.28952,3457.3,3457.2,0.44982328]
[1735860722029,0.28952,3457.3,3457.2,0.73934328]
[1735860722223,0.28952,3457.3,3457.2,0.44982328]
[1735860722419,0.28952,3457.3,3457.2,0.73934328]
[1735860722624,0.28952,3457.3,3457.2,0.82984918]
[1735860722928,0.28952,3457.3,3457.2,0.54032904]
[1735860723123,0.28952,3457.3,3457.2,0.44982328]
[1735860723323,0.28955,3456.8,3456.7,3.2078]
[1735860723531,41.08955,3456.8,3456.7,3.65782095]
[1735860725424,0.28955,3456.8,3456.7,3.65782095]
[1735860728726,0.28955,3456.8,3456.7,3.2078]
[1735860728937,0.28955,3456.8,3456.7,3.65828714]
[1735860729640,0.28955,3456.8,3456.7,3.2078]
[1735860729830,0.28955,3456.8,3456.7,3.65842002]
[1735860730332,0.28955,3456.8,3456.7,3.94792165]
[1735860730528,0.28955,3456.8,3456.7,5.08892165]
[1735860730834,0.28955,3456.8,3456.7,4.79936165]
[1735860732634,0.28955,3456.8,3456.7,5.08892165]
[1735860735834,0.28955,3456.8,3456.7,4.79936165]
[1735860737232,0.28955,3456.8,3456.7,3.65836165]
[1735860740036,5.49962457,3456.9,3455.9,9.98505559]
[1735860740235,0.72389,3456.8,3456.2,1.136]
[1735860740438,0.72389,3456.8,3456.0,0.4675]
[1735860740631,0.28961,3456.2,3456.1,5.65917677]
[1735860740942,0.28961,3456.2,3456.1,1.136]
[1735860742729,0.28961,3456.2,3456.1,1.42561]
[1735860742934,0.2896,3456.3,3456.2,0.2896]
[1735860743139,4.54809422,3456.4,3456.0,0.4675]
[1735860743438,0.2896,3456.3,3456.2,1.136]
[1735860744931,0.2896,3456.3,3456.2,1.42561]
[1735860745734,0.2896,3456.3,3456.2,1.136]
[1735860751544,2.29182457,3456.3,3455.9,3.2078]
[1735860751848,0.72409,3455.9,3455.5,0.2375007]
[1735860752038,5.49962457,3456.0,3455.4,5.65917677]
[1735860752248,0.28966,3455.5,3455.4,1.136]
[1735860752632,1.1697,3455.8,3455.3,4.52317677]
[1735860752633,0.28967,3455.4,3455.3,4.52317677]
[1735860752838,3.47559457,3455.4,3455.3,2.55573843]
[1735860753438,3.18592457,3455.4,3454.7,1.136]
[1735860753637,0.28972,3454.8,3454.7,1.136]
[1735860754142,0.28972,3454.8,3454.7,1.58297085]
[1735860756539,0.28972,3454.8,3454.7,0.44697085]
[1735860756941,0.28973,3454.7,3454.6,3.655]
[1735860757238,0.28973,3454.7,3454.6,0.4472]
[1735860757436,0.28973,3454.7,3454.6,0.89316743]
[1735860759446,0.28973,3454.7,3454.6,0.4472]
[1735860763050,2.72752457,3455.1,3454.4,1.5681]
[1735860763254,0.28975,3454.5,3454.4,0.4311]
[1735860763445,0.28976,3454.4,3454.3,0.4638]
[1735860763643,0.28976,3454.4,3454.2,3.2078]
[1735860763644,0.28976,3454.3,3454.2,3.2078]
[1735860765854,0.28978,3454.1,3454.0,0.4226]
[1735860766245,0.28979,3454.0,3453.9,0.4638]
[1735860767851,0.28979,3454.0,3453.9,0.90926442]
[1735860768052,0.28979,3454.0,3453.9,0.4638]
[1735860768453,0.28979,3454.0,3453.9,0.90928635]
[1735860769959,0.28976,3454.3,3454.1,0.28978]
[1735860770161,1.18876,3454.4,3454.1,0.28978]
[1735860770756,1.18876,3454.4,3454.2,0.28977]
[1735860770953,1.18876,3454.4,3454.1,0.28977]
[1735860771259,0.899,3454.4,3454.0,3.2078]
[1735860771458,0.28976,3454.3,3454.2,0.28977]
[1735860771657,1.18876,3454.4,3454.2,0.28977]
[1735860772655,1.18876,3454.4,3454.0,3.2078]
[1735860772861,1.18876,3454.4,3454.1,0.73535929]
[1735860772862,0.28977,3454.3,3454.1,0.73535929]
[1735860773061,0.899,3454.4,3454.1,0.28978]
[1735860773257,0.28976,3454.3,3454.0,3.49758]
[1735860773462,0.28978,3454.1,3453.9,0.4638]
[1735860773756,0.28978,3454.1,3454.0,0.73556083]
[1735860774060,0.899,3454.4,3454.0,0.73556083]
[1735860774061,0.899,3454.4,3454.0,3.65357083]
[1735860774264,0.72136,3454.4,3454.2,0.28976]
[1735860774564,0.72136,3454.4,3454.3,0.88067083]
[1735860775060,0.28976,3454.4,3454.3,0.88067083]
[1735860775259,0.28976,3454.4,3454.3,1.17043083]
[1735860775450,0.28976,3454.4,3454.3,0.88067083]
[1735860775856,3.2078,3455.3,3454.3,2.01567083]
[1735860776057,0.28971,3454.9,3454.5,3.2078]
[1735860776254,0.28971,3454.9,3454.8,0.28972]
[1735860776460,0.4502,3455.1,3454.6,0.44577083]
[1735860776760,1.62898,3455.5,3455.0,0.2897]
[1735860776761,0.2897,3455.2,3455.0,0.2897]
[1735860776957,0.4481,3455.5,3455.0,1.5897]
[1735860777162,0.28967,3455.4,3455.3,0.28967]
[1735860777357,2.74852457,3456.0,3455.5,0.28966]
[1735860777757,2.74852457,3456.0,3455.6,0.4459492]
[1735860778252,2.74852457,3456.0,3455.5,0.28966]
[1735860778253,0.28965,3455.7,3455.5,0.28966]
[1735860778457,0.28963,3455.9,3455.7,0.28964]
[1735860778657,0.28963,3455.9,3455.8,0.8727]
[1735860778857,0.28963,3455.9,3455.8,1.16234]
[1735860779055,0.28963,3455.9,3455.8,0.8727]
[1735860779459,0.28963,3455.9,3455.8,1.31891934]
[1735860779659,0.28963,3455.9,3455.8,0.44621934]
[1735860779863,0.28966,3455.6,3455.4,0.73847]
[1735860780062,2.29182457,3456.0,3455.4,0.4488]
[1735860780260,0.28966,3455.5,3455.4,1.5838]
[1735860780462,0.28966,3455.6,3455.4,1.87347]
[1735860780661,2.29182457,3456.0,3455.4,2.03029888]
[1735860780861,0.28966,3455.6,3455.5,0.44649888]
[1735860781569,0.28966,3455.5,3455.0,0.2897]
[1735860781763,0.4504,3455.5,3454.8,3.2078]
[1735860781971,0.28968,3455.4,3455.2,0.28968]
[1735860782160,0.28968,3455.4,3455.3,0.4643]
[1735860782363,0.28968,3455.4,3455.3,0.91122728]
[1735860783371,2.74222457,3455.7,3455.3,1.20090728]
[1735860783372,0.28967,3455.5,3455.3,1.20090728]
[1735860783565,0.28967,3455.5,3455.4,0.44692728]
[1735860783868,2.29182457,3456.0,3455.4,0.87432728]
[1735860784175,0.28965,3455.8,3455.5,0.28966]
[1735860784465,0.28965,3455.8,3455.6,0.28966]
[1735860784669,0.28965,3455.8,3455.6,0.73658728]
[1735860784968,0.852,3456.1,3455.7,0.44692728]
[1735860785162,0.28964,3455.9,3455.8,0.4445]
[1735860785362,0.28964,3455.9,3455.8,4.09922728]
[1735860785769,0.28964,3455.9,3455.8,0.89142728]
[1735860787469,0.28964,3455.9,3455.8,0.4445]
[1735860788472,0.28964,3455.9,3455.8,0.89027109]
[1735860788667,0.28964,3455.9,3455.8,0.4445]
[1735860788975,3.2078,3456.2,3455.8,0.4445]
[1735860789271,0.28963,3455.9,3455.8,0.4445]
[1735860789670,0.28963,3455.9,3455.8,0.89018275]
[1735860790168,0.28963,3455.9,3455.8,0.4445]
[1735860792978,0.28965,3455.7,3455.6,1.135]
[1735860793474,0.28966,3455.5,3455.4,1.5624]
[1735860793670,0.28966,3455.5,3455.4,0.4274]
[1735860793978,2.29182457,3455.7,3455.0,4.3428]
[1735860794270,0.2897,3455.1,3455.0,3.2078]
[1735860794775,0.28973,3454.7,3454.6,4.3428]
[1735860795079,0.28973,3454.7,3454.6,4.78894987]
[1735860797477,0.28973,3454.7,3454.6,5.07868987]
[1735860798272,0.28973,3454.7,3454.6,4.78894987]
[1735860801581,0.28973,3454.7,3454.6,0.44614987]
[1735860802377,3.6677,3455.0,3453.9,0.72799]
[1735860802378,2.29182457,3454.8,3454.0,0.4345]
[1735860802584,0.28979,3454.0,3453.9,1.138]
[1735860803085,0.28979,3454.0,3453.9,1.5849959]
[1735860803676,0.28979,3454.0,3453.9,0.4469959]
[1735860806581,0.28981,3453.8,3453.7,3.6423]
[1735860806783,10.04771879,3454.5,3453.8,0.2898]
[1735860807285,0.28979,3454.0,3453.9,0.44652438]
[1735860807783,0.28979,3454.0,3453.9,0.73632438]
[1735860808687,4.97649422,3454.6,3454.1,0.28978]
[1735860808984,0.28977,3454.2,3454.1,3.49758]
[1735860809185,4.97649422,3454.6,3454.1,3.49758]
[1735860809186,4.97649422,3454.6,3454.1,3.65409333]
[1735860809380,0.4284,3454.6,3454.1,3.65409333]
[1735860809585,0.4284,3454.6,3453.7,4.3458]
[1735860809586,2.29182457,3454.5,3453.7,4.3458]
[1735860809781,2.29182457,3454.5,3453.8,0.2898]
[1735860809975,0.28979,3454.0,3453.8,0.44632789]
[1735860810180,2.29182457,3454.5,3453.9,0.73612789]
[1735860810381,0.28979,3454.1,3454.0,0.44632789]
[1735860810985,0.28979,3454.1,3454.0,0.73611789]
[1735860811185,0.28979,3454.1,3454.0,0.44632789]
[1735860811585,0.28981,3453.9,3453.7,4.63561]
[1735860811788,0.28981,3453.9,3453.8,0.4462848]
[1735860813185,0.28981,3453.8,3453.7,3.2078]
[1735860813379,0.28981,3453.8,3453.7,3.65404672]
[1735860813579,0.28981,3453.8,3453.7,3.2078]
[1735860814283,0.28979,3454.0,3453.7,3.65401432]
[1735860814493,0.28981,3453.8,3453.7,3.65401432]
[1735860814684,0.28981,3453.8,3453.7,3.2078]
[1735860815289,0.28981,3453.8,3453.7,3.65402015]
[1735860817290,0.28981,3453.8,3453.7,0.44622015]
[1735860818797,0.28981,3453.8,3453.7,0.73603015]
[1735860818994,0.4333,3454.1,3453.7,0.44622015]
[1735860819295,0.2898,3453.9,3453.8,0.89862015]
[1735860821383,0.28979,3454.0,3453.9,0.2898]
[1735860821590,3.2078,3454.2,3453.9,0.2898]
[1735860821797,0.28979,3454.1,3453.9,0.2898]
[1735860821982,3.2078,3454.2,3453.9,0.2898]
[1735860821983,0.28979,3454.0,3453.9,0.2898]
[1735860822390,3.2078,3454.2,3453.9,0.44718697]
[1735860822591,0.28976,3454.4,3454.3,0.28976]
[1735860822788,0.461,3454.8,3454.2,4.3458]
[1735860822789,0.28976,3454.3,3454.2,4.3458]
[1735860822990,0.28976,3454.3,3454.2,1.58518697]
[1735860823491,0.4518,3454.6,3454.2,1.58518697]
[1735860823788,0.4518,3454.6,3454.3,0.44718697]
[1735860823995,0.74154,3454.6,3454.5,0.28975]
[1735860824183,0.74154,3454.6,3454.5,0.44718697]
[1735860824384,0.74154,3454.6,3454.5,0.87748697]
[1735860825396,0.28974,3454.6,3454.5,0.87748697]
[1735860825594,0.28974,3454.6,3454.5,1.16723697]
[1735860826189,0.28974,3454.6,3454.5,0.87748697]
[1735860826695,0.28974,3454.6,3454.5,1.16723697]
[1735860827688,0.28974,3454.6,3454.5,0.87748697]
[1735860829600,0.28974,3454.6,3454.5,1.16723697]
[1735860830099,0.28974,3454.6,3454.5,0.87748697]
[1735860832299,0.28974,3454.6,3454.5,0.44718697]
[1735860835798,4.83783422,3454.6,3454.5,0.44718697]
[1735860837007,0.28974,3454.6,3454.5,0.44718697]
[1735860837502,0.28977,3454.2,3454.1,3.2078]
[1735860837901,0.28977,3454.2,3454.1,3.65581702]
[1735860840609,4.83859833,3454.2,3454.1,3.65581702]
[1735860847299,0.28977,3454.2,3454.1,3.65581702]
[1735860849710,4.84609784,3454.2,3454.1,3.65581702]
[1735860849912,4.84609784,3454.2,3454.1,0.44801702]
[1735860851011,4.84609784,3454.2,3454.0,3.2078]
[1735860851012,0.28978,3454.1,3454.0,3.2078]
[1735860851407,0.28978,3454.1,3454.0,3.65633289]
[1735860851604,4.84610784,3454.1,3454.0,3.65633289]
[1735860855713,0.28978,3454.1,3454.0,3.65633289]
[1735860857606,0.28978,3454.1,3454.0,0.44853289]
[1735860857912,0.28978,3454.1,3454.0,3.65633289]
[1735860859211,0.28978,3454.1,3454.0,0.44853289]
[1735860859712,0.75098,3454.1,3454.0,0.44853289]
[1735860860218,6.41891087,3454.1,3454.0,0.44853289]
[1735860861216,0.75098,3454.1,3454.0,0.44853289]
[1735860870523,0.28978,3454.1,3454.0,0.44853289]
[1735860883428,6.82751847,3454.3,3453.7,0.4628]
[1735860883635,0.28981,3453.8,3453.7,0.4628]
[1735860884030,0.28981,3453.8,3453.7,0.91148492]
[1735860887636,4.84770692,3453.8,3453.7,0.91148492]
[1735860888638,0.28981,3453.8,3453.7,0.91148492]
[1735860891236,1.16251,3453.8,3453.7,0.91148492]
[1735860891933,4.37031,3453.8,3453.7,0.44868492]
[1735860893138,0.28983,3453.5,3453.4,0.4509]
[1735860893339,2.58165457,3453.5,3453.4,0.4509]
[1735860893637,2.58165457,3453.5,3453.4,0.89917331]
[1735860897344,2.58165457,3453.5,3453.4,0.44827331]
[1735860901137,0.28985,3453.3,3453.2,0.4595]
[1735860901337,0.28985,3453.3,3453.2,0.90723192]
[1735860901535,5.98425993,3453.3,3453.2,0.90723192]
[1735860903541,5.98425993,3453.3,3453.2,0.44773192]
[1735860903737,5.69440993,3453.3,3453.1,0.4401]
[1735860903944,3.49418457,3453.2,3453.1,0.4401]
[1735860904341,3.49418457,3453.2,3453.1,0.88775059]
[1735860905144,9.1885945,3453.2,3453.1,0.88775059]
[1735860905744,6.89676993,3453.2,3453.1,0.88775059]
[1735860910448,7.90473116,3453.2,3453.1,0.88775059]
[1735860911643,5.98426993,3453.2,3453.1,0.88775059]
[1735860911848,5.98426993,3453.2,3453.1,1.17762059]
[1735860912451,5.69440993,3453.2,3453.1,2.18558182]
[1735860912752,1.17080994,3453.2,3453.1,10.39338182]
[1735860912944,6.44320695,3453.9,3453.2,0.72465]
[1735860913146,6.44320695,3453.9,3453.8,4.50557123]